[Event "*** Titled Tuesday Blitz"]
[Site "Chess.com"]
[Date "2019.03.05"]
[Round "8"]
[White "Micki-taryan"]
[Black "bascheyaro"]
[Result "1-0"]
[WhiteElo "2961"]
[BlackElo "2801"]
[TimeControl "180+2"]
[EndTime "14:55:41 PST"]
[Termination "Micki-taryan won by resignation"]

1. e4 {[%clk 0:03:01.9]} 1... e6 {[%clk 0:03:01.2]} 2. d4 {[%clk 0:03:02.1]}
2... d5 {[%clk 0:03:02.6]} 3. Nd2 {[%clk 0:03:03.5]} 3... c5 {[%clk 0:03:03.7]}
4. exd5 {[%clk 0:03:04.3]} 4... exd5 {[%clk 0:03:05.6]} 5. Ngf3 {[%clk
0:03:04.4]} 5... Nc6 {[%clk 0:03:07]} 6. Bb5 {[%clk 0:03:04]} 6... c4 {[%clk
0:03:08.4]} 7. O-O {[%clk 0:03:03.4]} 7... Bd6 {[%clk 0:03:09.6]} 8. c3 {[%clk
0:03:01.2]} 8... Ne7 {[%clk 0:03:10.5]} 9. b3 {[%clk 0:03:02.7]} 9... cxb3
{[%clk 0:03:11]} 10. axb3 {[%clk 0:03:04.6]} 10... O-O {[%clk 0:03:12.2]} 11.
Ba3 {[%clk 0:03:01]} 11... Bxa3 {[%clk 0:03:12.6]} 12. Rxa3 {[%clk 0:03:02.9]}
12... Bf5 {[%clk 0:03:13.9]} 13. Re1 {[%clk 0:03:02.2]} 13... a6 {[%clk
0:03:15]} 14. Bf1 {[%clk 0:03:00.7]} 14... Qd6 {[%clk 0:03:13.2]} 15. Ra1 {[%clk
0:03:01.3]} 15... Rae8 {[%clk 0:03:13.8]} 16. b4 {[%clk 0:02:57.4]} 16... Na7
{[%clk 0:03:07.7]} 17. Nb3 {[%clk 0:02:56.4]} 17... Ng6 {[%clk 0:02:53.1]} 18.
Nc5 {[%clk 0:02:54.6]} 18... Qc7 {[%clk 0:02:54]} 19. Qd2 {[%clk 0:02:52.7]}
19... Bg4 {[%clk 0:02:51]} 20. Re3 {[%clk 0:02:41.8]} 20... Nb5 {[%clk
0:02:25.5]} 21. Rae1 {[%clk 0:02:39.4]} 21... Rxe3 {[%clk 0:02:25.4]} 22. Rxe3
{[%clk 0:02:38.7]} 22... Bxf3 {[%clk 0:02:23.4]} 23. Rxf3 {[%clk 0:02:38.9]}
23... Nd6 {[%clk 0:02:24.7]} 24. g3 {[%clk 0:02:37.5]} 24... Ne4 {[%clk
0:02:13]} 25. Nxe4 {[%clk 0:02:25]} 25... dxe4 {[%clk 0:02:14.2]} 26. Rf5 {[%clk
0:02:26.9]} 26... Ne7 {[%clk 0:02:04.4]} 27. Re5 {[%clk 0:02:24]} 27... f5
{[%clk 0:02:04.7]} 28. Qa2+ {[%clk 0:02:22.1]} 28... Kh8 {[%clk 0:02:02.9]} 29.
Qe6 {[%clk 0:02:22.8]} 29... Ng6 {[%clk 0:01:55.6]} 30. Rc5 {[%clk 0:02:07.6]}
30... Qe7 {[%clk 0:01:56.8]} 31. Qxe7 {[%clk 0:02:05.7]} 31... Nxe7 {[%clk
0:01:58.7]} 32. Re5 {[%clk 0:01:52.1]} 32... Nc8 {[%clk 0:01:56.4]} 33. c4
{[%clk 0:01:48.6]} 33... g6 {[%clk 0:01:55.1]} 34. c5 {[%clk 0:01:49.7]} 34...
Kg7 {[%clk 0:01:51.3]} 35. d5 {[%clk 0:01:51.1]} 35... Kf6 {[%clk 0:01:45.1]}
36. Re6+ {[%clk 0:01:52.3]} 36... Kf7 {[%clk 0:01:46.7]} 37. Bc4 {[%clk
0:01:54.2]} 37... Re8 {[%clk 0:01:48]} 38. d6 {[%clk 0:01:50.4]} 38... Na7
{[%clk 0:01:26.8]} 39. Re7+ {[%clk 0:01:37.8]} 1-0

[Event "*** Titled Tuesday Blitz"]
[Site "Chess.com"]
[Date "2019.03.05"]
[Round "8"]
[White "tteshan"]
[Black "LaughingTiger"]
[Result "0-1"]
[WhiteElo "2197"]
[BlackElo "2150"]
[TimeControl "180+2"]
[EndTime "14:56:11 PST"]
[Termination "LaughingTiger won by resignation"]

1. d4 {[%clk 0:03:01.9]} 1... Nf6 {[%clk 0:02:56]} 2. c4 {[%clk 0:02:53.7]} 2...
g6 {[%clk 0:02:46.8]} 3. Nc3 {[%clk 0:02:52.9]} 3... Bg7 {[%clk 0:02:46.6]} 4.
e4 {[%clk 0:02:54.3]} 4... d6 {[%clk 0:02:46.9]} 5. Be2 {[%clk 0:02:53.9]} 5...
O-O {[%clk 0:02:47.9]} 6. Bg5 {[%clk 0:02:53]} 6... Nbd7 {[%clk 0:02:46.6]} 7.
Qd2 {[%clk 0:02:53]} 7... c5 {[%clk 0:02:46.6]} 8. d5 {[%clk 0:02:52.7]} 8... a6
{[%clk 0:02:46.5]} 9. h4 {[%clk 0:02:50.2]} 9... b5 {[%clk 0:02:42.1]} 10. cxb5
{[%clk 0:02:49.8]} 10... axb5 {[%clk 0:02:44]} 11. Bxb5 {[%clk 0:02:49.9]} 11...
h5 {[%clk 0:02:30.5]} 12. Nge2 {[%clk 0:02:47.5]} 12... Rb8 {[%clk 0:02:29.5]}
13. a4 {[%clk 0:02:40.3]} 13... Ne5 {[%clk 0:02:19.2]} 14. Bh6 {[%clk
0:02:19.2]} 14... Bd7 {[%clk 0:02:15.1]} 15. Bxg7 {[%clk 0:02:18.7]} 15... Kxg7
{[%clk 0:02:17]} 16. f3 {[%clk 0:01:55.6]} 16... Qa5 {[%clk 0:02:05.4]} 17.
O-O-O {[%clk 0:01:43.5]} 17... Bxb5 {[%clk 0:01:57.3]} 18. axb5 {[%clk
0:01:04.3]} 18... Nc4 {[%clk 0:01:55.9]} 19. Qd3 {[%clk 0:00:55.5]} 19... Qb4
{[%clk 0:01:43]} 20. Qb1 {[%clk 0:00:37.3]} 20... Ra8 {[%clk 0:01:34.1]} 21. Rd3
{[%clk 0:00:21.4]} 21... Ra7 {[%clk 0:01:31.7]} 22. Kc2 {[%clk 0:00:21.6]} 22...
Rfa8 {[%clk 0:01:27.9]} 23. f4 {[%clk 0:00:20.5]} 23... Ra1 {[%clk 0:01:20.6]}
24. Qxa1 {[%clk 0:00:21.1]} 24... Rxa1 {[%clk 0:01:21.5]} 25. Rxa1 {[%clk
0:00:04.3]} 25... Qxb2+ {[%clk 0:01:22]} 26. Kd1 {[%clk 0:00:05.8]} 26... Qxa1+
{[%clk 0:01:23.9]} 27. Nc1 {[%clk 0:00:07]} 27... Nb2+ {[%clk 0:01:25]} 0-1

[Event "*** Titled Tuesday Blitz"]
[Site "Chess.com"]
[Date "2019.03.05"]
[Round "8"]
[White "Supernotar"]
[Black "eljanov"]
[Result "0-1"]
[WhiteElo "2525"]
[BlackElo "2765"]
[TimeControl "180+2"]
[EndTime "14:56:28 PST"]
[Termination "eljanov won by checkmate"]

1. d4 {[%clk 0:03:01.9]} 1... Nf6 {[%clk 0:02:59.9]} 2. c4 {[%clk 0:03:00.7]}
2... e6 {[%clk 0:03:00.9]} 3. Nf3 {[%clk 0:03:01.7]} 3... b6 {[%clk 0:03:02.1]}
4. g3 {[%clk 0:03:00.8]} 4... Bb7 {[%clk 0:03:03.1]} 5. Bg2 {[%clk 0:03:01.9]}
5... Be7 {[%clk 0:03:04.6]} 6. O-O {[%clk 0:03:02]} 6... O-O {[%clk 0:03:05.9]}
7. Nc3 {[%clk 0:03:03]} 7... Ne4 {[%clk 0:03:06.7]} 8. Bd2 {[%clk 0:03:04]} 8...
Bf6 {[%clk 0:03:06.5]} 9. Rc1 {[%clk 0:02:53.5]} 9... c5 {[%clk 0:03:07]} 10.
dxc5 {[%clk 0:02:37]} 10... bxc5 {[%clk 0:03:04.8]} 11. Qc2 {[%clk 0:02:33]}
11... Nxd2 {[%clk 0:03:01.6]} 12. Qxd2 {[%clk 0:02:33.3]} 12... Qb6 {[%clk
0:02:38]} 13. Rfd1 {[%clk 0:02:23.3]} 13... Rd8 {[%clk 0:02:36.3]} 14. b3 {[%clk
0:02:06.3]} 14... Be7 {[%clk 0:02:29]} 15. Ne1 {[%clk 0:01:42.7]} 15... Nc6
{[%clk 0:02:24.7]} 16. Nc2 {[%clk 0:01:39]} 16... d6 {[%clk 0:02:01.4]} 17. h4
{[%clk 0:01:34.2]} 17... Ne5 {[%clk 0:01:59.3]} 18. Bxb7 {[%clk 0:01:30.8]}
18... Qxb7 {[%clk 0:02:00.4]} 19. Qf4 {[%clk 0:01:11.3]} 19... a6 {[%clk
0:01:58.9]} 20. Rd2 {[%clk 0:01:02.8]} 20... f5 {[%clk 0:01:43.2]} 21. Rcd1
{[%clk 0:01:00.4]} 21... h6 {[%clk 0:01:37.4]} 22. Na4 {[%clk 0:00:44.3]} 22...
Qc6 {[%clk 0:01:30.7]} 23. Qe3 {[%clk 0:00:32.4]} 23... g5 {[%clk 0:01:16.5]}
24. hxg5 {[%clk 0:00:30.3]} 24... hxg5 {[%clk 0:01:17.8]} 25. f4 {[%clk
0:00:31.5]} 25... gxf4 {[%clk 0:01:18.8]} 26. gxf4 {[%clk 0:00:31.3]} 26... Kf7
{[%clk 0:01:19.9]} 27. Ne1 {[%clk 0:00:08.2]} 27... Rg8+ {[%clk 0:01:18]} 28.
Kf1 {[%clk 0:00:06.4]} 28... Qh1+ {[%clk 0:01:17.8]} 29. Kf2 {[%clk 0:00:06.6]}
29... Qg1# {[%clk 0:01:18.4]} 0-1

[Event "*** Titled Tuesday Blitz"]
[Site "Chess.com"]
[Date "2019.03.05"]
[Round "8"]
[White "SimonKnightRivendell"]
[Black "LarissaSteenbekkers"]
[Result "0-1"]
[WhiteElo "1994"]
[BlackElo "2020"]
[TimeControl "180+2"]
[EndTime "14:56:29 PST"]
[Termination "LarissaSteenbekkers won by checkmate"]

1. Nf3 {[%clk 0:03:01.9]} 1... Nf6 {[%clk 0:02:58.9]} 2. g3 {[%clk 0:03:02.8]}
2... g6 {[%clk 0:02:58.7]} 3. Bg2 {[%clk 0:03:04.3]} 3... Bg7 {[%clk 0:02:59.4]}
4. O-O {[%clk 0:03:05.9]} 4... O-O {[%clk 0:02:59.1]} 5. d3 {[%clk 0:03:07.4]}
5... d5 {[%clk 0:02:57.9]} 6. c3 {[%clk 0:03:08.9]} 6... c5 {[%clk 0:02:57.1]}
7. Nbd2 {[%clk 0:03:10.3]} 7... Nc6 {[%clk 0:02:56.4]} 8. Qc2 {[%clk 0:03:11.7]}
8... d4 {[%clk 0:02:54.9]} 9. a4 {[%clk 0:03:03.1]} 9... e5 {[%clk 0:02:51.6]}
10. Nc4 {[%clk 0:03:00.7]} 10... Nd5 {[%clk 0:02:49.9]} 11. Bg5 {[%clk 0:02:57]}
11... f6 {[%clk 0:02:32.1]} 12. Bd2 {[%clk 0:02:56.4]} 12... Be6 {[%clk
0:02:30.1]} 13. Rfb1 {[%clk 0:02:34.9]} 13... Qd7 {[%clk 0:02:28.2]} 14. e4
{[%clk 0:02:14.2]} 14... dxe3 {[%clk 0:02:20.3]} 15. Nxe3 {[%clk 0:02:14.5]}
15... Rad8 {[%clk 0:02:17]} 16. Ne1 {[%clk 0:01:54.5]} 16... Nce7 {[%clk
0:02:11.9]} 17. b4 {[%clk 0:01:41.1]} 17... cxb4 {[%clk 0:01:57.7]} 18. cxb4
{[%clk 0:01:39]} 18... f5 {[%clk 0:01:57.8]} 19. Nc4 {[%clk 0:01:33.5]} 19... f4
{[%clk 0:01:54.5]} 20. Be4 {[%clk 0:01:20.8]} 20... Bf5 {[%clk 0:01:51.2]} 21.
Kg2 {[%clk 0:00:58]} 21... Nc6 {[%clk 0:01:49.5]} 22. Qa2 {[%clk 0:00:39.9]}
22... Kh8 {[%clk 0:01:30.6]} 23. b5 {[%clk 0:00:40.6]} 23... Nd4 {[%clk
0:01:27.9]} 24. Bb4 {[%clk 0:00:41]} 24... Bxe4+ {[%clk 0:01:23.7]} 25. dxe4
{[%clk 0:00:35.8]} 25... f3+ {[%clk 0:01:23.3]} 26. Kh1 {[%clk 0:00:32.5]} 26...
Nxb4 {[%clk 0:01:09.8]} 27. Rxb4 {[%clk 0:00:33.3]} 27... Qh3 {[%clk 0:01:09.3]}
28. Ne3 {[%clk 0:00:34.1]} 28... Bh6 {[%clk 0:00:59.3]} 29. Nd5 {[%clk
0:00:22.7]} 29... Qf1# {[%clk 0:00:54.9]} 0-1

[Event "*** Titled Tuesday Blitz"]
[Site "Chess.com"]
[Date "2019.03.05"]
[Round "8"]
[White "1stSecond"]
[Black "SaraciNderim"]
[Result "0-1"]
[WhiteElo "2745"]
[BlackElo "2747"]
[TimeControl "180+2"]
[EndTime "14:56:36 PST"]
[Termination "SaraciNderim won by resignation"]

1. Nf3 {[%clk 0:03:01.9]} 1... Nf6 {[%clk 0:03:00]} 2. c4 {[%clk 0:03:01.9]}
2... g6 {[%clk 0:03:01.1]} 3. Nc3 {[%clk 0:03:02.5]} 3... Bg7 {[%clk 0:03:02.3]}
4. e4 {[%clk 0:03:03.1]} 4... d6 {[%clk 0:03:01.1]} 5. d4 {[%clk 0:03:04.4]}
5... O-O {[%clk 0:03:01.2]} 6. Be2 {[%clk 0:02:59.7]} 6... c5 {[%clk 0:03:02.1]}
7. O-O {[%clk 0:02:55]} 7... cxd4 {[%clk 0:03:03.2]} 8. Nxd4 {[%clk 0:02:55.9]}
8... Nc6 {[%clk 0:03:04.5]} 9. Be3 {[%clk 0:02:55.2]} 9... Bd7 {[%clk
0:03:05.7]} 10. f3 {[%clk 0:02:56.3]} 10... a5 {[%clk 0:03:06.8]} 11. Na4 {[%clk
0:02:54.9]} 11... Nxd4 {[%clk 0:03:07.6]} 12. Bxd4 {[%clk 0:02:56.8]} 12... Bxa4
{[%clk 0:03:06.2]} 13. Qxa4 {[%clk 0:02:57.4]} 13... Nxe4 {[%clk 0:02:52.8]} 14.
Bxg7 {[%clk 0:02:48.1]} 14... Nc5 {[%clk 0:02:52.7]} 15. Qd1 {[%clk 0:02:25.6]}
15... Kxg7 {[%clk 0:02:53.2]} 16. Qd4+ {[%clk 0:02:27.1]} 16... e5 {[%clk
0:02:53.8]} 17. Qd2 {[%clk 0:02:25.6]} 17... Qb6 {[%clk 0:02:54.5]} 18. Kh1
{[%clk 0:02:26.8]} 18... Ne6 {[%clk 0:02:54.7]} 19. Rad1 {[%clk 0:02:21.8]}
19... Nd4 {[%clk 0:02:54.1]} 20. f4 {[%clk 0:02:23.3]} 20... f6 {[%clk
0:02:52.6]} 21. Bf3 {[%clk 0:02:23.6]} 21... Qb4 {[%clk 0:02:45]} 22. Qd3 {[%clk
0:02:09.7]} 22... Rac8 {[%clk 0:02:34.1]} 23. Bd5 {[%clk 0:02:09.2]} 23... b5
{[%clk 0:02:28.1]} 24. b3 {[%clk 0:02:09.5]} 24... a4 {[%clk 0:02:25.7]} 25. Rb1
{[%clk 0:01:52.7]} 25... axb3 {[%clk 0:02:25.5]} 26. axb3 {[%clk 0:01:53.4]}
26... Rc7 {[%clk 0:02:16]} 27. Rf2 {[%clk 0:01:34.5]} 27... Qc5 {[%clk
0:02:14.4]} 28. Rbf1 {[%clk 0:01:33.2]} 28... bxc4 {[%clk 0:02:07]} 29. bxc4
{[%clk 0:01:34.1]} 29... Ra7 {[%clk 0:02:06.5]} 30. Rb2 {[%clk 0:01:23.4]} 30...
Nf5 {[%clk 0:01:56.1]} 31. Be4 {[%clk 0:01:01.3]} 31... Qd4 {[%clk 0:01:52]} 32.
Qb1 {[%clk 0:00:53.5]} 32... Ne3 {[%clk 0:01:45.2]} 33. Rc1 {[%clk 0:00:42.7]}
33... exf4 {[%clk 0:01:42]} 34. Rb7+ {[%clk 0:00:42]} 34... Rxb7 {[%clk
0:01:42.8]} 35. Qxb7+ {[%clk 0:00:43.7]} 35... Rf7 {[%clk 0:01:44]} 36. Qa8
{[%clk 0:00:36.3]} 36... Ng4 {[%clk 0:01:43.7]} 0-1

[Event "*** Titled Tuesday Blitz"]
[Site "Chess.com"]
[Date "2019.03.05"]
[Round "8"]
[White "Annawel"]
[Black "joppie2"]
[Result "0-1"]
[WhiteElo "2893"]
[BlackElo "2790"]
[TimeControl "180+2"]
[EndTime "14:56:59 PST"]
[Termination "joppie2 won by checkmate"]

1. Nf3 {[%clk 0:03:01.9]} 1... d5 {[%clk 0:03:00.2]} 2. g3 {[%clk 0:03:02.8]}
2... Nf6 {[%clk 0:03:01.8]} 3. Bg2 {[%clk 0:03:04.3]} 3... e6 {[%clk 0:03:02.8]}
4. O-O {[%clk 0:03:04.6]} 4... Be7 {[%clk 0:03:04.3]} 5. d3 {[%clk 0:03:06]}
5... O-O {[%clk 0:03:05.7]} 6. Nbd2 {[%clk 0:03:07.8]} 6... c5 {[%clk
0:03:05.9]} 7. e4 {[%clk 0:03:09.7]} 7... Nc6 {[%clk 0:03:07.3]} 8. e5 {[%clk
0:03:08.5]} 8... Nd7 {[%clk 0:03:08]} 9. Qe2 {[%clk 0:03:10.1]} 9... b5 {[%clk
0:03:09.1]} 10. Re1 {[%clk 0:03:10.2]} 10... a5 {[%clk 0:03:07.6]} 11. h4 {[%clk
0:03:11]} 11... Bb7 {[%clk 0:03:09]} 12. Nf1 {[%clk 0:03:11.6]} 12... Qc7 {[%clk
0:03:09.9]} 13. Bf4 {[%clk 0:03:12.6]} 13... Rfc8 {[%clk 0:03:08.8]} 14. N1h2
{[%clk 0:03:08.6]} 14... Qd8 {[%clk 0:03:08.9]} 15. h5 {[%clk 0:03:04.1]} 15...
h6 {[%clk 0:03:09.4]} 16. Ng4 {[%clk 0:03:05.2]} 16... Bf8 {[%clk 0:03:06.9]}
17. Qd2 {[%clk 0:03:04.9]} 17... Nd4 {[%clk 0:03:01.4]} 18. Nh4 {[%clk
0:02:53.3]} 18... b4 {[%clk 0:02:54]} 19. c3 {[%clk 0:02:51.4]} 19... Nc6 {[%clk
0:02:52.9]} 20. Nf3 {[%clk 0:02:19.6]} 20... a4 {[%clk 0:02:53.1]} 21. Rac1
{[%clk 0:02:17.9]} 21... a3 {[%clk 0:02:53.3]} 22. c4 {[%clk 0:01:24.6]} 22...
axb2 {[%clk 0:02:52.4]} 23. Qxb2 {[%clk 0:01:26.5]} 23... Ne7 {[%clk 0:02:38.8]}
24. Nd2 {[%clk 0:00:54.7]} 24... Ra3 {[%clk 0:02:35.9]} 25. Nb3 {[%clk
0:00:54.4]} 25... Rca8 {[%clk 0:02:36.7]} 26. Ra1 {[%clk 0:00:55.2]} 26... R8a7
{[%clk 0:02:33.4]} 27. Qd2 {[%clk 0:00:39]} 27... Qa8 {[%clk 0:02:29.8]} 28.
Nxh6+ {[%clk 0:00:32.1]} 28... gxh6 {[%clk 0:02:30.4]} 29. Bxh6 {[%clk 0:00:34]}
29... Bxh6 {[%clk 0:02:04.9]} 30. Qxh6 {[%clk 0:00:35.9]} 30... Rxb3 {[%clk
0:02:05.5]} 31. Qg5+ {[%clk 0:00:36.6]} 31... Kf8 {[%clk 0:02:06.2]} 32. h6
{[%clk 0:00:22.7]} 32... Ng6 {[%clk 0:02:06.8]} 33. Bf3 {[%clk 0:00:21.8]} 33...
Rxd3 {[%clk 0:02:00]} 34. Bh5 {[%clk 0:00:22.5]} 34... Qe8 {[%clk 0:01:54.5]}
35. Bxg6 {[%clk 0:00:05]} 35... fxg6 {[%clk 0:01:54.3]} 36. Qf4+ {[%clk
0:00:06.9]} 36... Kg8 {[%clk 0:01:50.2]} 37. Rad1 {[%clk 0:00:06.1]} 37... Rxd1
{[%clk 0:01:47.4]} 38. Rxd1 {[%clk 0:00:08]} 38... Nf8 {[%clk 0:01:46.6]} 39.
cxd5 {[%clk 0:00:05.6]} 39... Bxd5 {[%clk 0:01:47.5]} 40. Rc1 {[%clk 0:00:04.5]}
40... Qf7 {[%clk 0:01:48.2]} 41. Qh4 {[%clk 0:00:04.6]} 41... Qf3 {[%clk
0:01:49.3]} 42. Qh2 {[%clk 0:00:03.2]} 42... Rh7 {[%clk 0:01:48.5]} 43. Re1
{[%clk 0:00:02.6]} 43... Rxh6 {[%clk 0:01:48.9]} 44. Qxh6 {[%clk 0:00:04.5]}
44... Qg2# {[%clk 0:01:50.4]} 0-1

[Event "*** Titled Tuesday Blitz"]
[Site "Chess.com"]
[Date "2019.03.05"]
[Round "8"]
[White "IIIlllII1llIl"]
[Black "Keaton87"]
[Result "1-0"]
[WhiteElo "2598"]
[BlackElo "2539"]
[TimeControl "180+2"]
[EndTime "14:57:08 PST"]
[Termination "IIIlllII1llIl won by resignation"]

1. g3 {[%clk 0:02:59.9]} 1... d5 {[%clk 0:03:00.3]} 2. Bg2 {[%clk 0:03:00.7]}
2... Nf6 {[%clk 0:03:01.5]} 3. Nf3 {[%clk 0:03:01.5]} 3... Bf5 {[%clk
0:03:02.5]} 4. O-O {[%clk 0:03:01.4]} 4... e6 {[%clk 0:03:03.7]} 5. d3 {[%clk
0:03:02.5]} 5... Be7 {[%clk 0:03:04.2]} 6. c4 {[%clk 0:03:03.6]} 6... c6 {[%clk
0:03:03.5]} 7. b3 {[%clk 0:03:01]} 7... O-O {[%clk 0:03:03.8]} 8. Bb2 {[%clk
0:03:01.4]} 8... h6 {[%clk 0:03:04.4]} 9. Nbd2 {[%clk 0:03:01.2]} 9... Nbd7
{[%clk 0:03:05.1]} 10. a3 {[%clk 0:03:00.3]} 10... a5 {[%clk 0:03:03.8]} 11. Ra2
{[%clk 0:03:01.1]} 11... Bd6 {[%clk 0:02:47.6]} 12. Qa1 {[%clk 0:03:00.5]} 12...
Qe7 {[%clk 0:02:48.6]} 13. Ne5 {[%clk 0:02:48.4]} 13... Nxe5 {[%clk 0:02:47.7]}
14. Bxe5 {[%clk 0:02:50.3]} 14... Bxe5 {[%clk 0:02:47.1]} 15. Qxe5 {[%clk
0:02:52.2]} 15... Nd7 {[%clk 0:02:35]} 16. Qb2 {[%clk 0:02:10.2]} 16... Bg6
{[%clk 0:02:30.2]} 17. Rfa1 {[%clk 0:01:55.2]} 17... Qd6 {[%clk 0:02:27.9]} 18.
b4 {[%clk 0:01:42.6]} 18... a4 {[%clk 0:02:24.7]} 19. Rc1 {[%clk 0:01:28]} 19...
d4 {[%clk 0:02:21.8]} 20. c5 {[%clk 0:01:24]} 20... Qe7 {[%clk 0:02:07.2]} 21.
Qxd4 {[%clk 0:01:21.8]} 21... e5 {[%clk 0:02:07.9]} 22. Qd6 {[%clk 0:00:39.6]}
22... Qxd6 {[%clk 0:02:02.5]} 23. cxd6 {[%clk 0:00:41.5]} 23... f6 {[%clk
0:02:03.3]} 24. Rb2 {[%clk 0:00:41.1]} 24... Rab8 {[%clk 0:01:50.9]} 25. b5
{[%clk 0:00:41.3]} 25... c5 {[%clk 0:01:51.1]} 26. b6 {[%clk 0:00:24.2]} 26...
Rfd8 {[%clk 0:01:38.5]} 27. Nc4 {[%clk 0:00:21.3]} 27... f5 {[%clk 0:01:23.6]}
28. g4 {[%clk 0:00:14.1]} 28... fxg4 {[%clk 0:01:18.9]} 29. Na5 {[%clk
0:00:14.8]} 29... e4 {[%clk 0:01:16.3]} 30. dxe4 {[%clk 0:00:15.5]} 30... Ne5
{[%clk 0:01:16.8]} 31. Rxc5 {[%clk 0:00:16.2]} 31... Nf7 {[%clk 0:00:59]} 32. e5
{[%clk 0:00:16.6]} 32... Rdc8 {[%clk 0:00:42.7]} 33. Rxc8+ {[%clk 0:00:16.6]}
33... Rxc8 {[%clk 0:00:43.9]} 34. Bxb7 {[%clk 0:00:17.8]} 34... Rc1+ {[%clk
0:00:43.6]} 35. Kg2 {[%clk 0:00:19]} 35... Nxe5 {[%clk 0:00:45]} 36. Bd5+ {[%clk
0:00:20.2]} 36... Kh7 {[%clk 0:00:44.8]} 37. b7 {[%clk 0:00:21.1]} 1-0

[Event "*** Titled Tuesday Blitz"]
[Site "Chess.com"]
[Date "2019.03.05"]
[Round "8"]
[White "dopolian"]
[Black "politeplayer"]
[Result "1/2-1/2"]
[WhiteElo "2185"]
[BlackElo "2097"]
[TimeControl "180+2"]
[EndTime "14:57:20 PST"]
[Termination "Game drawn by repetition"]

1. e4 {[%clk 0:03:01.9]} 1... c5 {[%clk 0:02:59.8]} 2. Nf3 {[%clk 0:02:58.6]}
2... d6 {[%clk 0:03:00.8]} 3. d4 {[%clk 0:02:59.8]} 3... cxd4 {[%clk 0:03:01.9]}
4. Nxd4 {[%clk 0:03:01.7]} 4... Nf6 {[%clk 0:03:02.9]} 5. Nc3 {[%clk 0:03:03.1]}
5... g6 {[%clk 0:03:04.2]} 6. Be3 {[%clk 0:03:03.6]} 6... Bg7 {[%clk 0:03:05.4]}
7. f3 {[%clk 0:03:04.6]} 7... O-O {[%clk 0:03:06.8]} 8. Qd2 {[%clk 0:03:05.8]}
8... Nc6 {[%clk 0:03:08.2]} 9. g4 {[%clk 0:03:07.3]} 9... Nxd4 {[%clk
0:03:04.3]} 10. Bxd4 {[%clk 0:03:09.2]} 10... Be6 {[%clk 0:03:05.5]} 11. O-O-O
{[%clk 0:03:09.6]} 11... Qa5 {[%clk 0:03:05.5]} 12. a3 {[%clk 0:03:09.7]} 12...
Rfc8 {[%clk 0:03:04.1]} 13. h4 {[%clk 0:03:09.2]} 13... Rab8 {[%clk 0:02:58.8]}
14. Nd5 {[%clk 0:02:52.8]} 14... Qxd2+ {[%clk 0:02:48.4]} 15. Rxd2 {[%clk
0:02:54.7]} 15... Bxd5 {[%clk 0:02:16.1]} 16. exd5 {[%clk 0:02:50.6]} 16... Nd7
{[%clk 0:02:14.2]} 17. Bxg7 {[%clk 0:02:49.8]} 17... Kxg7 {[%clk 0:02:15.2]} 18.
Bh3 {[%clk 0:02:45.1]} 18... Rc4 {[%clk 0:02:01.9]} 19. Re1 {[%clk 0:02:21.8]}
19... Ne5 {[%clk 0:01:52]} 20. Re3 {[%clk 0:02:15.7]} 20... b5 {[%clk
0:01:33.9]} 21. Bf1 {[%clk 0:02:10]} 21... Rc7 {[%clk 0:00:58.8]} 22. Be2 {[%clk
0:02:07.8]} 22... b4 {[%clk 0:00:51]} 23. Rb3 {[%clk 0:02:00.4]} 23... bxa3
{[%clk 0:00:45.9]} 24. Rxa3 {[%clk 0:01:59.6]} 24... Rb4 {[%clk 0:00:32.1]} 25.
Re3 {[%clk 0:01:50.7]} 25... Rcb7 {[%clk 0:00:23.4]} 26. c3 {[%clk 0:01:50.7]}
26... Ra4 {[%clk 0:00:19.9]} 27. Bd3 {[%clk 0:01:29.3]} 27... Ra1+ {[%clk
0:00:18.1]} 28. Kc2 {[%clk 0:01:24.9]} 28... a5 {[%clk 0:00:16.4]} 29. Be2
{[%clk 0:01:16.2]} 29... a4 {[%clk 0:00:16.2]} 30. f4 {[%clk 0:01:15.7]} 30...
a3 {[%clk 0:00:04]} 31. bxa3 {[%clk 0:00:59.3]} 31... Ra2+ {[%clk 0:00:03.7]}
32. Kc1 {[%clk 0:00:55.9]} 32... Ra1+ {[%clk 0:00:04.9]} 33. Kc2 {[%clk
0:00:56.8]} 33... Ra2+ {[%clk 0:00:06.1]} 34. Kc1 {[%clk 0:00:57.8]} 34... Ra1+
{[%clk 0:00:07.4]} 35. Kc2 {[%clk 0:00:58.9]} 35... Ra2+ {[%clk 0:00:08.1]} 36.
Kc1 {[%clk 0:01:00.2]} 36... Ra1+ {[%clk 0:00:09.4]} 1/2-1/2